fUSD/lending_fUSD_20240514
["ID","MTS","AMOUNT","RATE_DAILY","PERIOD"]
[326998379,1715696524022,-448.49,0.00012797,2]
[326998380,1715696524049,-168.57239671,0.00012859,2]
[326998381,1715696524073,-155.0,0.00012874,2]
[326998382,1715696524096,-178.76507842,0.00012874,2]
[326998383,1715696524118,-150.0,0.00012875,2]
[326998384,1715696524141,-173.26212603,0.00012876,2]
[326998385,1715696524163,-500.0,0.00012876,2]
[326998386,1715696524184,-510.72192128,0.00012876,2]
[326998387,1715696524207,-395.75,0.00012876,2]
[326998388,1715696524236,-500.0,0.00012876,2]
[326998389,1715696524259,-500.0,0.00012876,2]
[326998390,1715696524283,-500.0,0.00012876,2]
[326998391,1715696524307,-500.0,0.00012876,2]
[326998392,1715696524330,-538.64,0.00012876,2]
[326998393,1715696524353,-541.85,0.00012876,2]
[326998394,1715696524375,-500.0,0.00012876,2]
[326998395,1715696524397,-500.0,0.00012876,2]
[326998396,1715696524419,-500.0,0.00012876,2]
[326998397,1715696524442,-500.0,0.00012876,2]
[326998398,1715696524467,-500.0,0.00012876,2]
[326998399,1715696524490,-500.0,0.00012876,2]
[326998400,1715696524511,-500.0,0.00012876,2]
[326998401,1715696524534,-500.0,0.00012876,2]
[326998402,1715696524557,-500.0,0.00012876,2]
[326998403,1715696524583,-500.0,0.00012876,2]
[326998404,1715696524605,-500.0,0.00012876,2]
[326998405,1715696524627,-500.0,0.00012876,2]
[326998406,1715696524861,-500.0,0.00012876,2]
[326998407,1715696524883,-500.0,0.00012876,2]
[326998408,1715696524905,-500.0,0.00012876,2]
[326998409,1715696524926,-500.0,0.00012876,2]
[326998410,1715696524947,-500.0,0.00012876,2]
[326998411,1715696524970,-500.0,0.00012876,2]
[326998412,1715696524992,-500.0,0.00012876,2]
[326998413,1715696525013,-500.0,0.00012876,2]
[326998414,1715696525038,-500.0,0.00012876,2]
[326998415,1715696525062,-500.0,0.00012876,2]
[326998416,1715696525084,-500.0,0.00012876,2]
[326998417,1715696525106,-500.0,0.00012876,2]
[326998418,1715696525130,-500.0,0.00012876,2]
[326998419,1715696525151,-500.0,0.00012876,2]
[326998420,1715696525174,-500.0,0.00012876,2]
[326998421,1715696525195,-500.0,0.00012876,2]
[326998422,1715696525222,-500.0,0.00012876,2]
[326998423,1715696525243,-500.0,0.00012876,2]
[326998424,1715696525264,-500.0,0.00012876,2]
[326998425,1715696525286,-500.0,0.00012876,2]
[326998426,1715696525307,-500.0,0.00012876,2]
[326998427,1715696525328,-150.0,0.00012876,2]
[326998428,1715696525349,-150.0,0.00012876,2]
[326998429,1715696525370,-150.0,0.00012876,2]
[326998430,1715696525391,-500.0,0.00012876,2]
[326998431,1715696525412,-500.0,0.00012876,2]
[326998432,1715696525433,-500.0,0.00012876,2]
[326998433,1715696525454,-412.12988969,0.00012876,2]
[326998446,1715697033020,-155.0,0.00010401,2]
[326998447,1715697033030,-782.26025222,0.00010402,2]
[326998448,1715697033040,-535.02614423,0.00010405,2]
[326998449,1715697033050,-635.66549066,0.00010411,2]
[326998450,1715697033062,-138.10450934,0.00010411,2]
[326998451,1715697033072,-282.33501335,0.00011794,2]
[326998452,1715697033082,-250.0,0.00011795,2]
[326998453,1715697033092,-158.47352896,0.00011898,2]
[326998454,1715697033103,-1000.0,0.00011906,2]
[326998455,1715697033112,-217.68,0.00011929,2]
[326998456,1715697033122,-250.0,0.00011975,2]
[326998457,1715697033131,-174.88,0.00011998,2]
[326998458,1715697033141,-158.47352896,0.00012145,2]
[326998459,1715697033150,-209.234195,0.00012358,2]
[326998460,1715697033161,-181.864357,0.00012358,2]
[326998461,1715697033171,-158.47352896,0.00012393,2]
[326998462,1715697033186,-150.0,0.000124,2]
[326998463,1715697033196,-868.95,0.000124,2]
[326998464,1715697033205,-158.47352896,0.0001264,2]
[326998465,1715697033215,-190.82,0.000127,2]
[326998466,1715697033227,-150.0,0.000127,2]
[326998467,1715697033236,-868.95,0.000127,2]
[326998468,1715697033245,-415.18,0.000127,2]
[326998469,1715697033259,-150.0,0.000127,2]
[326998470,1715697033269,-868.95,0.000127,2]
[326998471,1715697033281,-150.0,0.000127,2]
[326998472,1715697033292,-834.38,0.000127,2]
[326998473,1715697033302,-833.5722,0.00012797,2]
[326998474,1715697033312,-500.0,0.00012876,2]
[326998475,1715697033322,-500.0,0.00012876,2]
[326998476,1715697033332,-500.0,0.00012876,2]
[326998477,1715697033342,-645.10923569,0.00012876,2]
[326998478,1715697033355,-445.90079113,0.00012876,2]
[326998479,1715697033365,-500.0,0.00012876,2]
[326998480,1715697033374,-500.0,0.00012876,2]
[326998481,1715697033384,-500.0,0.00012876,2]
[326998482,1715697033393,-500.0,0.00012876,2]
[326998483,1715697033402,-500.0,0.00012876,2]
[326998484,1715697033412,-500.0,0.00012876,2]
[326998485,1715697033422,-500.0,0.00012876,2]
[326998486,1715697033432,-500.0,0.00012876,2]
[326998487,1715697033441,-500.0,0.00012876,2]
[326998488,1715697033451,-500.0,0.00012876,2]
[326998489,1715697033460,-500.0,0.00012876,2]
[326998490,1715697033470,-500.0,0.00012876,2]
[326998491,1715697033479,-544.29,0.00012876,2]
[326998492,1715697033489,-544.29,0.00012876,2]
[326998493,1715697033498,-544.29,0.00012876,2]
[326998494,1715697033507,-500.0,0.00012876,2]
[326998495,1715697033518,-500.0,0.00012876,2]
[326998496,1715697033528,-500.0,0.00012876,2]
[326998497,1715697033538,-500.0,0.00012876,2]
[326998498,1715697033548,-500.0,0.00012876,2]
[326998499,1715697033558,-500.0,0.00012876,2]
[326998500,1715697033567,-500.0,0.00012876,2]
[326998501,1715697033577,-500.0,0.00012876,2]
[326998502,1715697033587,-500.0,0.00012876,2]
[326998503,1715697033596,-500.0,0.00012876,2]
[326998504,1715697033608,-723.65,0.00012876,2]
[326998505,1715697033617,-723.65,0.00012876,2]
[326998506,1715697033627,-723.65,0.00012876,2]
[326998507,1715697033636,-158.47352896,0.00012887,2]
[326998508,1715697033646,-500.0,0.00012896,2]
[326998509,1715697033655,-500.0,0.00012896,2]
[326998510,1715697033665,-500.0,0.00012896,2]
[326998511,1715697033675,-571.97,0.00012896,2]
[326998512,1715697033685,-500.0,0.00012896,2]
[326998513,1715697033695,-500.0,0.00012896,2]
[326998514,1715697033704,-500.0,0.00012896,2]
[326998515,1715697033714,-500.0,0.00012896,2]
[326998516,1715697033723,-500.0,0.00012896,2]
[326998517,1715697033733,-500.0,0.00012896,2]
[326998518,1715697033743,-500.0,0.00012896,2]
[326998519,1715697033753,-500.0,0.00012896,2]
[326998520,1715697033763,-665.73,0.00012896,2]
[326998521,1715697033772,-500.0,0.00012896,2]
[326998522,1715697033781,-500.0,0.00012896,2]
[326998523,1715697033790,-500.0,0.00012896,2]
[326998524,1715697033799,-500.0,0.00012896,2]
[326998525,1715697033808,-500.0,0.00012896,2]
[326998526,1715697033817,-645.57,0.00012896,2]
[326998527,1715697033826,-500.0,0.00012896,2]
[326998528,1715697033835,-500.0,0.00012896,2]
[326998529,1715697033845,-500.0,0.00012896,2]
[326998530,1715697033856,-500.0,0.00012896,2]
[326998531,1715697033865,-500.0,0.00012896,2]
[326998532,1715697033874,-500.0,0.00012896,2]
[326998533,1715697033884,-16.50703702,0.00012896,2]
[326998534,1715697033896,-483.49296298,0.00012896,2]
[326998535,1715697033906,-500.0,0.00012896,2]
[326998536,1715697033915,-249.13843702,0.00012896,2]
[326998537,1715697036674,-1563.60941232,0.00012729,2]
[326998538,1715697036684,-250.86156298,0.00012896,2]
[326998539,1715697036693,-378.60156564,0.00012896,2]
[326998540,1715697036705,-121.39843436,0.00012896,2]
[326998541,1715697036715,-500.0,0.00012896,2]
[326998542,1715697036724,-500.0,0.00012896,2]
[326998543,1715697036733,-132.17934435,0.00012896,2]
[326998555,1715697038897,-367.82065565,0.00012896,2]
[326998556,1715697038906,-500.0,0.00012896,2]
[326998557,1715697038916,-500.0,0.00012896,2]
[326998558,1715697038926,-500.0,0.00012896,2]
[326998559,1715697038935,-699.22,0.00012896,2]
[326998560,1715697038944,-598.6,0.00012896,2]
[326998561,1715697038954,-500.0,0.00012896,2]
[326998562,1715697038964,-150.0,0.00012896,2]
[326998563,1715697038974,-500.0,0.00012896,2]
[326998564,1715697038983,-500.0,0.00012896,2]
[326998565,1715697038992,-500.0,0.00012896,2]
[326998566,1715697039001,-500.0,0.00012896,2]
[326998567,1715697039011,-500.0,0.00012896,2]
[326998568,1715697039021,-500.0,0.00012896,2]
[326998569,1715697039031,-500.0,0.00012896,2]
[326998570,1715697039041,-487.21840764,0.00012896,2]
[326998571,1715697039053,-12.78159236,0.00012896,2]
[326998572,1715697039064,-500.0,0.00012896,2]
[326998573,1715697039074,-121.35026694,0.00012896,2]
[326998578,1715697040872,-256.89893274,0.00012896,2]
[326998579,1715697040884,-121.75080032,0.00012896,2]
[326998580,1715697040894,-552.31533622,0.00012896,2]
[326998581,1715697040904,-338.02838037,0.00012896,2]
[326998582,1715697040915,-161.97161963,0.00012896,2]
[326998583,1715697040925,-709.53338037,0.00012896,2]
[326998585,1715697040937,-153.63661963,0.00012896,2]
[326998587,1715697040946,-500.0,0.00012896,2]
[326998588,1715697040956,-500.0,0.00012896,2]
[326998589,1715697040965,-919.01,0.00012896,2]
[326998590,1715697040975,-500.0,0.00012896,2]
[326998591,1715697040985,-500.0,0.00012896,2]
[326998592,1715697040995,-133.6346691,0.00012896,2]
[326998593,1715697041007,-374.1453309,0.00012896,2]
[326998594,1715697041016,-10339.65,0.00012896,2]
[326998595,1715697041025,-500.0,0.00012896,2]
[326998596,1715697041035,-877.22,0.00012896,2]
[326998597,1715697041044,-176.5630691,0.00012896,2]
[326998598,1715697041056,-323.4369309,0.00012896,2]
[326998599,1715697041066,-698.38,0.00012896,2]
[326998600,1715697041076,-610.8861656,0.00012896,2]
[326998601,1715697041090,-137.6038344,0.00012896,2]
[326998602,1715697041100,-500.0,0.00012896,2]
[326998603,1715697041113,-1235.45,0.00012896,2]
[326998604,1715697041123,-500.0,0.00012896,2]
[326998605,1715697041132,-1148.57,0.00012896,2]
[326998606,1715697041142,-500.0,0.00012896,2]
[326998607,1715697041152,-5941.84,0.00012896,2]
[326998608,1715697041161,-779.14,0.00012896,2]
[326998609,1715697041171,-500.0,0.00012896,2]
[326998610,1715697041184,-500.0,0.00012896,2]
[326998611,1715697041194,-500.0,0.00012896,2]
[326998612,1715697041204,-500.0,0.00012896,2]
[326998613,1715697041214,-500.0,0.00012896,2]
[326998614,1715697041225,-174.82,0.00012896,2]
[326998615,1715697041235,-998.81,0.00012896,2]
[326998616,1715697041245,-624.18,0.00012896,2]
[326998617,1715697041255,-500.0,0.00012896,2]
[326998618,1715697041264,-554.08,0.00012896,2]
[326998619,1715697041275,-500.0,0.00012896,2]
[326998620,1715697041285,-500.0,0.00012896,2]
[326998621,1715697041294,-500.0,0.00012896,2]
[326998622,1715697041304,-500.0,0.00012896,2]
[326998623,1715697041314,-467.2,0.00012896,2]
[326998624,1715697041323,-500.0,0.00012896,2]
[326998625,1715697041332,-397.42,0.00012896,2]
[326998626,1715697041548,-602.21,0.00012896,2]
[326998627,1715697041558,-437.87,0.00012896,2]
[326998628,1715697041568,-500.0,0.00012896,2]
[326998629,1715697041577,-159.48,0.00012896,2]
[326998630,1715697041587,-1546.66,0.00012896,2]
[326998631,1715697041597,-500.0,0.00012896,2]
[326998632,1715697041610,-784.73,0.00012896,2]
[326998633,1715697041620,-500.0,0.00012896,2]
[326998635,1715697041630,-500.0,0.00012896,2]
[326998637,1715697041639,-500.0,0.00012896,2]
[326998638,1715697041649,-813.68,0.00012896,2]
[326998639,1715697041658,-500.0,0.00012896,2]
[326998640,1715697041668,-390.04,0.00012896,2]
[326998641,1715697041678,-500.0,0.00012896,2]
[326998642,1715697041688,-500.0,0.00012896,2]
[326998643,1715697041698,-500.0,0.00012896,2]
[326998644,1715697041708,-500.0,0.00012896,2]
[326998645,1715697041719,-500.0,0.00012896,2]
[326998646,1715697041729,-500.0,0.00012896,2]
[326998647,1715697041738,-500.0,0.00012897,2]
[326998648,1715697041748,-500.0,0.00012897,2]
[326998649,1715697041757,-500.0,0.00012897,2]
[326998650,1715697041767,-500.0,0.00012897,2]
[326998651,1715697041777,-500.0,0.00012897,2]
[326998652,1715697041786,-446.79962633,0.00012897,2]
[326998653,1715697041849,-53.20037367,0.00012897,2]
[326998654,1715697041862,-500.0,0.00012897,2]
[326998655,1715697041872,-500.0,0.00012897,2]
[326998656,1715697041882,-500.0,0.00012897,2]
[326998657,1715697041892,-500.0,0.00012897,2]
[326998658,1715697041902,-500.0,0.00012897,2]
[326998659,1715697041912,-209.46917751,0.00012897,2]
[326998660,1715697041924,-290.53082249,0.00012897,2]
[326998661,1715697041934,-500.0,0.00012897,2]
[326998662,1715697041944,-95.92865417,0.00012897,2]
[326998663,1715697041956,-386.7847,0.00012897,2]
[326998664,1715697041984,-17.28664583,0.00012897,2]
[326998665,1715697041994,-500.0,0.00012897,2]
[326998666,1715697042003,-500.0,0.00012897,2]
[326998667,1715697042014,-500.0,0.00012897,2]
[326998668,1715697042024,-500.0,0.00012897,2]
[326998669,1715697042034,-500.0,0.00012897,2]
[326998670,1715697042044,-545.3,0.00012897,2]
[326998671,1715697042054,-150.0,0.00012897,2]
[326998672,1715697042064,-500.0,0.00012897,2]
[326998673,1715697042073,-500.0,0.00012897,2]
[326998674,1715697042083,-628.27056663,0.00012897,2]
[326998675,1715697042092,-500.0,0.00012897,2]
[326998676,1715697042102,-500.0,0.00012897,2]
[326998677,1715697042115,-500.0,0.00012897,2]
[326998678,1715697042125,-500.0,0.00012897,2]
[326998679,1715697042134,-500.0,0.00012897,2]
[326998680,1715697042144,-500.0,0.00012897,2]
[326998681,1715697042154,-1230.68,0.00012897,2]
[326998682,1715697042163,-500.0,0.00012897,2]
[326998683,1715697042173,-500.0,0.00012897,2]
[326998684,1715697042187,-500.0,0.00012897,2]
[326998685,1715697042199,-500.0,0.00012897,2]
[326998686,1715697042208,-500.0,0.00012897,2]
[326998687,1715697042218,-500.0,0.00012897,2]
[326998688,1715697042229,-500.0,0.00012897,2]
[326998689,1715697042239,-500.0,0.00012897,2]
[326998690,1715697042248,-500.0,0.00012897,2]
[326998691,1715697042258,-500.0,0.00012897,2]
[326998692,1715697042269,-500.0,0.00012897,2]
[326998693,1715697042278,-500.0,0.00012897,2]
[326998694,1715697042288,-500.0,0.00012897,2]
[326998695,1715697042299,-500.0,0.00012897,2]
[326998696,1715697042309,-500.0,0.00012897,2]
[326998697,1715697042319,-500.0,0.00012897,2]
[326998698,1715697042328,-500.0,0.00012897,2]
[326998699,1715697042338,-500.0,0.00012897,2]
[326998700,1715697042347,-500.0,0.00012897,2]
[326998701,1715697042357,-500.0,0.00012897,2]
[326998702,1715697042368,-500.0,0.00012897,2]
[326998703,1715697042377,-954.27,0.00012897,2]
[326998704,1715697042386,-500.0,0.00012897,2]
[326998705,1715697042395,-500.0,0.00012897,2]
[326998706,1715697042404,-500.0,0.00012897,2]
[326998707,1715697042414,-500.0,0.00012897,2]
[326998708,1715697042424,-500.0,0.00012897,2]
[326998709,1715697042433,-500.0,0.00012897,2]
[326998710,1715697042442,-500.0,0.00012897,2]
[326998711,1715697042451,-500.0,0.00012897,2]
[326998712,1715697042461,-500.0,0.00012897,2]
[326998713,1715697042470,-500.0,0.00012897,2]
[326998714,1715697042480,-500.0,0.00012897,2]
[326998715,1715697042490,-500.0,0.00012897,2]
[326998716,1715697042499,-546.49570227,0.00012897,2]
[326998717,1715697042509,-500.0,0.00012897,2]
[326998718,1715697042519,-500.0,0.00012897,2]
[326998719,1715697042529,-500.0,0.00012897,2]
[326998720,1715697042538,-238.94420885,0.00012897,2]
[326998721,1715697042548,-602.03093916,0.00012897,2]
[326998722,1715697042557,-500.0,0.00012897,2]
[326998723,1715697042567,-500.0,0.00012897,2]
[326998724,1715697042576,-1215.88,0.00012897,2]
[326998725,1715697042586,-500.0,0.00012897,2]
[326998726,1715697042595,-903.37,0.00012897,2]
[326998727,1715697042605,-507.12427216,0.00012897,2]
[326998728,1715697042622,-500.0,0.00012897,2]
[326998729,1715697042631,-500.0,0.00012897,2]
[326998730,1715697042640,-1211.51,0.00012897,2]
[326998731,1715697042650,-524.94569545,0.00012897,2]
[326998732,1715697042659,-500.0,0.00012897,2]
[326998733,1715697042669,-500.0,0.00012897,2]
[326998734,1715697042679,-500.0,0.00012897,2]
[326998735,1715697042688,-1183.33,0.00012897,2]
[326998736,1715697042698,-500.0,0.00012897,2]
[326998737,1715697042708,-500.0,0.00012897,2]
[326998738,1715697042718,-379.6,0.00012897,2]
[326998739,1715697042727,-500.0,0.00012897,2]
[326998740,1715697042736,-500.0,0.00012897,2]
[326998741,1715697042746,-500.0,0.00012897,2]
[326998742,1715697042755,-500.0,0.00012897,2]
[326998743,1715697042765,-500.0,0.00012897,2]
[326998744,1715697042775,-500.0,0.00012897,2]
[326998745,1715697042784,-500.0,0.00012897,2]
[326998746,1715697042793,-500.0,0.00012897,2]
[326998747,1715697042803,-500.0,0.00012897,2]
[326998748,1715697042812,-500.0,0.00012897,2]
[326998749,1715697042822,-500.0,0.00012897,2]
[326998750,1715697042832,-1610.25,0.00012897,2]
[326998751,1715697042842,-500.0,0.00012897,2]
[326998752,1715697042851,-464.2,0.00012897,2]
[326998753,1715697042865,-500.0,0.00012897,2]
[326998754,1715697042874,-500.0,0.00012897,2]
[326998755,1715697042884,-500.0,0.00012897,2]
[326998756,1715697042893,-500.0,0.00012897,2]
[326998757,1715697042903,-500.0,0.00012897,2]
[326998758,1715697042913,-500.0,0.00012897,2]
[326998759,1715697042922,-723.65,0.00012897,2]
[326998760,1715697042931,-500.0,0.00012897,2]
[326998761,1715697042941,-500.0,0.00012899,2]
[326998762,1715697042951,-500.0,0.00012899,2]
[326998763,1715697042961,-500.0,0.00012899,2]
[326998764,1715697042971,-635.96489486,0.00012899,2]
[326998765,1715697042981,-2158.36,0.00012899,2]
[326998766,1715697042990,-500.0,0.00012899,2]
[326998767,1715697043000,-612.62,0.00012899,2]
[326998768,1715697043009,-524.38,0.00012899,2]
[326998769,1715697043019,-500.0,0.00012899,2]
[326998770,1715697043028,-500.0,0.00012899,2]
[326998771,1715697043038,-500.0,0.00012899,2]
[326998772,1715697043047,-500.0,0.00012899,2]
[326998773,1715697043057,-2189.45,0.00012899,2]
[326998774,1715697043066,-2316.10715414,0.000129,2]
[326998775,1715697043076,-7149.51685735,0.000129,2]
[326998776,1715697043085,-172.263909,0.00012976,2]
[326998777,1715697043095,-209.234195,0.00012976,2]
[326998778,1715697043104,-164.52,0.00012977,2]
[326998779,1715697043117,-745.1,0.00012986,2]
[326998780,1715697043126,-520.43,0.00012986,2]
[326998781,1715697043136,-500.0,0.00012986,2]
[326998782,1715697043145,-1091.45,0.00012986,2]
[326998783,1715697043154,-500.0,0.00012986,2]
[326998784,1715697043164,-500.0,0.00012986,2]
[326998785,1715697043173,-1234.21,0.00012986,2]
[326998786,1715697043187,-500.0,0.00012986,2]
[326998787,1715697043198,-1075.27,0.00012986,2]
[326998788,1715697043208,-584.52,0.00012986,2]
[326998789,1715697043218,-1697.25,0.00012986,2]
[326998790,1715697043229,-1332.38900712,0.00012986,2]
[326998791,1715697043243,-21.55099288,0.00012986,2]
[326998792,1715697043254,-576.32,0.00012986,2]
[326998793,1715697043264,-342.80454464,0.00012986,2]
[326998794,1715697043276,-1207.97545536,0.00012986,2]
[326998795,1715697043286,-1363.23,0.00012986,2]
[326998796,1715697043296,-250.72613901,0.00012986,2]
[326998798,1715697043308,-866.57163133,0.00012986,2]
[326998799,1715697043320,-287.02222966,0.00012986,2]
[326998800,1715697043330,-500.0,0.00012986,2]
[326998801,1715697043340,-500.0,0.00012986,2]
[326998802,1715697043350,-500.0,0.00012986,2]
[326998803,1715697043363,-500.0,0.00012986,2]
[326998804,1715697043372,-500.0,0.00012986,2]
[326998805,1715697043381,-500.0,0.00012986,2]
[326998806,1715697043390,-500.0,0.00012986,2]
[326998807,1715697043400,-5101.26,0.00012986,2]
[326998808,1715697043410,-500.0,0.00012986,2]
[326998809,1715697043419,-500.0,0.00012986,2]
[326998810,1715697043429,-906.41,0.00012986,2]
[326998811,1715697043439,-500.0,0.00012986,2]
[326998812,1715697043448,-500.0,0.00012986,2]
[326998813,1715697043458,-500.0,0.00012986,2]
[326998814,1715697043467,-500.0,0.00012986,2]
[326998815,1715697043476,-500.0,0.00012986,2]
[326998816,1715697043486,-500.0,0.00012986,2]
[326998817,1715697043496,-35335.7117512,0.00012987,2]
[326998818,1715697043505,-500.0,0.00012987,2]
[326998819,1715697043514,-571.97,0.00012987,2]
[326998820,1715697043524,-500.0,0.00012987,2]
[326998821,1715697043533,-500.0,0.00012987,2]
[326998822,1715697043543,-500.0,0.00012987,2]
[326998823,1715697043552,-500.0,0.00012987,2]
[326998824,1715697043561,-500.0,0.00012987,2]
[326998825,1715697043571,-500.0,0.00012987,2]
[326998826,1715697043581,-500.0,0.00012987,2]
[326998827,1715697043591,-500.0,0.00012987,2]
[326998828,1715697043600,-665.73,0.00012987,2]
[326998829,1715697043613,-500.0,0.00012987,2]
[326998830,1715697043622,-155.0,0.00012987,2]
[326998831,1715697043632,-155.0,0.00012987,2]
[326998832,1715697043642,-500.0,0.00012987,2]
[326998835,1715697043651,-3978.00985405,0.00012987,2]
[326998839,1715697043660,-500.0,0.00012987,2]
[326998843,1715697043670,-500.0,0.00012987,2]
[326998846,1715697043679,-500.0,0.00012987,2]
[326998849,1715697043688,-645.57,0.00012987,2]
[326998852,1715697043699,-500.0,0.00012987,2]
[326998855,1715697043709,-500.0,0.00012987,2]
[326998858,1715697043719,-500.0,0.00012987,2]
[326998861,1715697043728,-500.0,0.00012987,2]
[326998864,1715697043738,-500.0,0.00012987,2]
[326998867,1715697043748,-500.0,0.00012987,2]
[326998870,1715697043757,-500.0,0.00012987,2]
[326998873,1715697043767,-500.0,0.00012987,2]
[326998875,1715697043777,-500.0,0.00012987,2]
[326998878,1715697043787,-500.0,0.00012987,2]
[326998881,1715697043797,-500.0,0.00012987,2]
[326998884,1715697043806,-500.0,0.00012987,2]
[326998887,1715697043815,-500.0,0.00012987,2]
[326998890,1715697043825,-500.0,0.00012987,2]
[326998893,1715697043834,-699.22,0.00012987,2]
[326998896,1715697043844,-500.0,0.00012987,2]
[326998899,1715697043853,-150.0,0.00012987,2]
[326998902,1715697043866,-500.0,0.00012987,2]
[326998905,1715697043876,-500.0,0.00012987,2]
[326998908,1715697043885,-500.0,0.00012987,2]
[326998911,1715697043895,-500.0,0.00012987,2]
[326998914,1715697043907,-500.0,0.00012987,2]
[326998917,1715697043917,-500.0,0.00012987,2]
[326998920,1715697043926,-500.0,0.00012987,2]
[326998923,1715697043935,-500.0,0.00012987,2]
[326998926,1715697043945,-500.0,0.00012987,2]
[326998928,1715697043954,-500.0,0.00012987,2]
[326998930,1715697043964,-500.0,0.00012987,2]
[326998932,1715697043974,-863.17,0.00012987,2]
[326998935,1715697043984,-500.0,0.00012987,2]
[326998938,1715697043994,-919.01,0.00012987,2]
[326998941,1715697044004,-500.0,0.00012987,2]
[326998944,1715697044014,-500.0,0.00012987,2]
[326998947,1715697044025,-507.78,0.00012987,2]
[326998949,1715697044035,-10339.65,0.00012987,2]
[326998951,1715697044045,-500.0,0.00012987,2]
[326998953,1715697044055,-877.22,0.00012987,2]
[326998955,1715697044064,-500.0,0.00012987,2]
[326998957,1715697044074,-698.38,0.00012987,2]
[326998959,1715697044084,-748.49,0.00012987,2]
[326998961,1715697044093,-548.97,0.00012987,2]
[326998963,1715697044103,-1235.45,0.00012987,2]
[326998965,1715697044114,-272.08,0.00012987,2]
[326998967,1715697044123,-1148.57,0.00012987,2]
[326998969,1715697044132,-500.0,0.00012987,2]
[326998971,1715697044142,-5941.84,0.00012987,2]
[326998973,1715697044152,-779.14,0.00012987,2]
[326998975,1715697044161,-500.0,0.00012987,2]
[326998977,1715697044171,-500.0,0.00012987,2]
[326998979,1715697044183,-500.0,0.00012987,2]
[326998981,1715697044194,-745.1,0.00012987,2]
[326998983,1715697044204,-500.0,0.00012987,2]
[326998984,1715697044214,-520.43,0.00012987,2]
[326998986,1715697044224,-500.0,0.00012987,2]
[326998987,1715697044233,-500.0,0.00012987,2]
[326998988,1715697044243,-1091.45,0.00012987,2]
[326998990,1715697044253,-998.81,0.00012987,2]
[326998992,1715697044262,-624.18,0.00012987,2]
[326998995,1715697044275,-500.0,0.00012987,2]
[326998997,1715697044285,-500.0,0.00012987,2]
[326998999,1715697044295,-500.0,0.00012987,2]
[326999001,1715697044305,-1234.21,0.00012987,2]
[326999003,1715697044315,-554.08,0.00012987,2]
[326999005,1715697044324,-500.0,0.00012987,2]
[326999007,1715697044334,-1075.27,0.00012987,2]
[326999009,1715697044343,-500.0,0.00012987,2]
[326999011,1715697044353,-584.52,0.00012987,2]
[326999013,1715697044365,-500.0,0.00012987,2]
[326999015,1715697044375,-500.0,0.00012987,2]
[326999017,1715697044384,-500.0,0.00012987,2]
[326999019,1715697044394,-500.0,0.00012987,2]
[326999021,1715697044404,-1697.25,0.00012987,2]
[326999023,1715697044414,-1353.94,0.00012987,2]